[Event "*** SCC Grand Prix: Titled Tuesday Blitz"]
[Site "Chess.com"]
[Date "2020.07.07"]
[Round "3"]
[White "ZiggyStardust64"]
[Black "OparinGrigoriy"]
[Result "0-1"]
[WhiteElo "2671"]
[BlackElo "2944"]
[TimeControl "180+1"]
[EndTime "10:28:47 PDT"]
[Termination "OparinGrigoriy won by resignation"]

1. d4 {[%clk 0:03:00.9]} 1... Nf6 {[%clk 0:02:59]} 2. c4 {[%clk 0:03:01]} 2...
e6 {[%clk 0:02:59.6]} 3. Nc3 {[%clk 0:03:01.3]} 3... Bb4 {[%clk 0:02:59.9]} 4.
Qc2 {[%clk 0:03:01.7]} 4... d6 {[%clk 0:03:00]} 5. Bd2 {[%clk 0:02:58.1]} 5...
c5 {[%clk 0:02:48.9]} 6. a3 {[%clk 0:02:50.5]} 6... Bxc3 {[%clk 0:02:43.9]} 7.
Bxc3 {[%clk 0:02:51.4]} 7... cxd4 {[%clk 0:02:44.6]} 8. Bxd4 {[%clk 0:02:51.7]}
8... Nc6 {[%clk 0:02:45.2]} 9. Bc3 {[%clk 0:02:48.7]} 9... O-O {[%clk
0:02:44.3]} 10. e3 {[%clk 0:02:49]} 10... e5 {[%clk 0:02:41.9]} 11. Nf3 {[%clk
0:02:45.3]} 11... Be6 {[%clk 0:02:26.6]} 12. Be2 {[%clk 0:02:43.2]} 12... Rc8
{[%clk 0:02:25.1]} 13. b3 {[%clk 0:02:31]} 13... h6 {[%clk 0:02:22.3]} 14. O-O
{[%clk 0:02:30.2]} 14... Qe7 {[%clk 0:02:22.9]} 15. Rfd1 {[%clk 0:02:29.7]}
15... Rfd8 {[%clk 0:02:22.9]} 16. Rac1 {[%clk 0:02:25.7]} 16... b6 {[%clk
0:01:52.8]} 17. h3 {[%clk 0:02:23.5]} 17... Na5 {[%clk 0:01:51.9]} 18. Qb2
{[%clk 0:02:16]} 18... Nb7 {[%clk 0:01:51.1]} 19. a4 {[%clk 0:01:51]} 19... a5
{[%clk 0:01:48.7]} 20. Nd2 {[%clk 0:01:41.1]} 20... Nc5 {[%clk 0:01:48.6]} 21.
Bf1 {[%clk 0:01:38.5]} 21... Bf5 {[%clk 0:01:45.3]} 22. f3 {[%clk 0:01:20.4]}
22... Be6 {[%clk 0:01:28.7]} 23. Be2 {[%clk 0:01:16.8]} 23... Nh5 {[%clk
0:01:27.8]} 24. Nf1 {[%clk 0:01:16.5]} 24... Qg5 {[%clk 0:01:20.9]} 25. Kh2
{[%clk 0:01:16.6]} 25... f5 {[%clk 0:01:13.7]} 26. Be1 {[%clk 0:01:16.4]} 26...
f4 {[%clk 0:01:03.4]} 27. e4 {[%clk 0:01:07.3]} 27... Qe7 {[%clk 0:01:03.5]} 28.
Bf2 {[%clk 0:00:56.2]} 28... Nf6 {[%clk 0:01:02.1]} 29. g4 {[%clk 0:00:49.6]}
29... fxg3+ {[%clk 0:00:59.9]} 30. Nxg3 {[%clk 0:00:49.9]} 30... Rf8 {[%clk
0:00:57.7]} 31. Rg1 {[%clk 0:00:48.1]} 31... Kh8 {[%clk 0:00:54.3]} 32. Be3
{[%clk 0:00:45.6]} 32... Nh7 {[%clk 0:00:51.5]} 33. Rc3 {[%clk 0:00:31.6]} 33...
Qh4 {[%clk 0:00:48.7]} 34. Bf1 {[%clk 0:00:27.8]} 34... Rxf3 {[%clk 0:00:34.7]}
35. Bxc5 {[%clk 0:00:27.7]} 35... Ng5 {[%clk 0:00:35.1]} 36. Bxd6 {[%clk
0:00:17.6]} 36... Bxh3 {[%clk 0:00:33]} 0-1

[Event "*** SCC Grand Prix: Titled Tuesday Blitz"]
[Site "Chess.com"]
[Date "2020.07.07"]
[Round "3"]
[White "alfiefischer77"]
[Black "crazychessbr"]
[Result "1-0"]
[WhiteElo "2312"]
[BlackElo "2074"]
[TimeControl "180+1"]
[EndTime "10:28:47 PDT"]
[Termination "alfiefischer77 won on time"]

1. e4 {[%clk 0:03:00.9]} 1... e6 {[%clk 0:02:59.6]} 2. Nf3 {[%clk 0:03:01]} 2...
d5 {[%clk 0:02:59.4]} 3. Nc3 {[%clk 0:03:00]} 3... Nf6 {[%clk 0:02:58.6]} 4. e5
{[%clk 0:02:59.9]} 4... Nfd7 {[%clk 0:02:58]} 5. d4 {[%clk 0:03:00.1]} 5... c5
{[%clk 0:02:58.2]} 6. dxc5 {[%clk 0:03:01]} 6... Bxc5 {[%clk 0:02:57.1]} 7. Bd3
{[%clk 0:03:00.7]} 7... Nc6 {[%clk 0:02:52.5]} 8. Bf4 {[%clk 0:03:00.4]} 8...
Qb6 {[%clk 0:02:47.8]} 9. O-O {[%clk 0:02:59.3]} 9... Be7 {[%clk 0:02:26.3]} 10.
a3 {[%clk 0:02:51.6]} 10... a6 {[%clk 0:02:25.1]} 11. Re1 {[%clk 0:02:48.3]}
11... h6 {[%clk 0:02:22.6]} 12. Qe2 {[%clk 0:02:37.3]} 12... O-O {[%clk
0:02:17.9]} 13. Qd2 {[%clk 0:02:15.2]} 13... f6 {[%clk 0:01:35.9]} 14. exf6
{[%clk 0:00:56.5]} 14... Nxf6 {[%clk 0:01:36.8]} 15. Ne5 {[%clk 0:00:51.8]}
15... Nxe5 {[%clk 0:01:28.6]} 16. Bxe5 {[%clk 0:00:52]} 16... Ng4 {[%clk
0:01:28]} 17. Bd4 {[%clk 0:00:20.1]} 17... Qc7 {[%clk 0:00:41.2]} 18. g3 {[%clk
0:00:19.8]} 18... Bc5 {[%clk 0:00:38.1]} 19. Bxc5 {[%clk 0:00:18.3]} 19... Qxc5
{[%clk 0:00:37.4]} 20. Re2 {[%clk 0:00:17.7]} 20... e5 {[%clk 0:00:33.3]} 21.
Bg6 {[%clk 0:00:16.6]} 21... Be6 {[%clk 0:00:14.8]} 22. h3 {[%clk 0:00:14.8]}
22... Nf6 {[%clk 0:00:10.4]} 23. Rxe5 {[%clk 0:00:13.6]} 23... Bxh3 {[%clk
0:00:10.3]} 24. Nxd5 {[%clk 0:00:12.4]} 24... Rad8 {[%clk 0:00:08.8]} 25. Nxf6+
{[%clk 0:00:10.7]} 25... gxf6 {[%clk 0:00:07]} 26. Qxh6 {[%clk 0:00:09.5]} 1-0

[Event "*** SCC Grand Prix: Titled Tuesday Blitz"]
[Site "Chess.com"]
[Date "2020.07.07"]
[Round "3"]
[White "isainz"]
[Black "AquivaRubinstein"]
[Result "0-1"]
[WhiteElo "2162"]
[BlackElo "2480"]
[TimeControl "180+1"]
[EndTime "10:28:49 PDT"]
[Termination "AquivaRubinstein won on time"]

1. e4 {[%clk 0:03:00.9]} 1... e5 {[%clk 0:02:59.7]} 2. Nf3 {[%clk 0:03:00.2]}
2... Nc6 {[%clk 0:02:59.8]} 3. Bc4 {[%clk 0:02:59.1]} 3... Nf6 {[%clk
0:02:59.4]} 4. d3 {[%clk 0:02:58]} 4... Bc5 {[%clk 0:02:59]} 5. c3 {[%clk
0:02:56.6]} 5... d6 {[%clk 0:02:56.7]} 6. h3 {[%clk 0:02:55.3]} 6... a6 {[%clk
0:02:55.9]} 7. a4 {[%clk 0:02:54.5]} 7... Ba7 {[%clk 0:02:55.3]} 8. O-O {[%clk
0:02:54.1]} 8... h6 {[%clk 0:02:51.1]} 9. Re1 {[%clk 0:02:53.5]} 9... O-O {[%clk
0:02:42.6]} 10. Nbd2 {[%clk 0:02:40.7]} 10... Re8 {[%clk 0:02:29]} 11. Nf1
{[%clk 0:02:39.4]} 11... Nh5 {[%clk 0:02:26.9]} 12. Ng5 {[%clk 0:02:08.3]} 12...
hxg5 {[%clk 0:01:32.2]} 13. Qxh5 {[%clk 0:02:05.9]} 13... Qf6 {[%clk 0:01:32.4]}
14. Bxg5 {[%clk 0:01:49.7]} 14... Qxf2+ {[%clk 0:01:26.8]} 15. Kh2 {[%clk
0:01:44.3]} 15... Qg1+ {[%clk 0:01:25.2]} 16. Kg3 {[%clk 0:01:44.2]} 16... Qf2+
{[%clk 0:01:08.4]} 17. Kh2 {[%clk 0:01:43.3]} 17... Be6 {[%clk 0:01:06.5]} 18.
Bxe6 {[%clk 0:01:12.4]} 18... Rxe6 {[%clk 0:01:05.7]} 19. Be3 {[%clk 0:00:57.2]}
19... Bxe3 {[%clk 0:00:54.9]} 20. Nxe3 {[%clk 0:00:57.1]} 20... Qf4+ {[%clk
0:00:50.4]} 21. Kh1 {[%clk 0:00:50.5]} 21... Rg6 {[%clk 0:00:37.6]} 22. Nf5
{[%clk 0:00:26.4]} 22... Re8 {[%clk 0:00:29.8]} 23. Qf3 {[%clk 0:00:19.6]} 23...
Qxf3 {[%clk 0:00:26.2]} 24. gxf3 {[%clk 0:00:19.9]} 24... Rf6 {[%clk 0:00:20]}
25. Rg1 {[%clk 0:00:19.5]} 25... g6 {[%clk 0:00:19.8]} 26. Nh6+ {[%clk
0:00:18.1]} 26... Kf8 {[%clk 0:00:18.6]} 27. Rg3 {[%clk 0:00:16.4]} 27... Ke7
{[%clk 0:00:16.4]} 28. Rag1 {[%clk 0:00:14.5]} 28... Rh8 {[%clk 0:00:16]} 29.
Ng4 {[%clk 0:00:13.1]} 29... Rf4 {[%clk 0:00:16.4]} 30. Kg2 {[%clk 0:00:12.5]}
30... Nd8 {[%clk 0:00:16.4]} 0-1

[Event "*** SCC Grand Prix: Titled Tuesday Blitz"]
[Site "Chess.com"]
[Date "2020.07.07"]
[Round "3"]
[White "mamey78"]
[Black "LaPorfia"]
[Result "1-0"]
[WhiteElo "2442"]
[BlackElo "2223"]
[TimeControl "180+1"]
[EndTime "10:28:49 PDT"]
[Termination "mamey78 won by checkmate"]

1. e4 {[%clk 0:02:00.9]} 1... d5 {[%clk 0:02:57.1]} 2. exd5 {[%clk 0:01:58.3]}
2... Nf6 {[%clk 0:02:57.3]} 3. d4 {[%clk 0:01:56.1]} 3... Bg4 {[%clk 0:02:56.6]}
4. Nf3 {[%clk 0:01:54.6]} 4... Qxd5 {[%clk 0:02:56.1]} 5. Be2 {[%clk 0:01:54.5]}
5... Nc6 {[%clk 0:02:55.6]} 6. h3 {[%clk 0:01:50.2]} 6... Qh5 {[%clk 0:02:54.8]}
7. Nbd2 {[%clk 0:01:48.5]} 7... O-O-O {[%clk 0:02:53.4]} 8. Rg1 {[%clk
0:01:34.3]} 8... Bxf3 {[%clk 0:02:45.6]} 9. Nxf3 {[%clk 0:01:34]} 9... Qa5+
{[%clk 0:02:14.4]} 10. c3 {[%clk 0:01:22]} 10... e5 {[%clk 0:02:13.8]} 11. b4
{[%clk 0:01:22.2]} 11... Qb6 {[%clk 0:02:12.1]} 12. b5 {[%clk 0:01:20.1]} 12...
e4 {[%clk 0:01:30]} 13. bxc6 {[%clk 0:01:15.4]} 13... exf3 {[%clk 0:01:30]} 14.
cxb7+ {[%clk 0:01:15.7]} 14... Kb8 {[%clk 0:01:25.9]} 15. Bxf3 {[%clk
0:01:15.4]} 15... Re8+ {[%clk 0:01:25.8]} 16. Be3 {[%clk 0:01:11.2]} 16... Bd6
{[%clk 0:01:24.6]} 17. Kf1 {[%clk 0:00:57.7]} 17... Bg3 {[%clk 0:01:13.1]} 18.
Qb3 {[%clk 0:00:42.4]} 18... Qd6 {[%clk 0:00:37.6]} 19. c4 {[%clk 0:00:35.7]}
19... Ne4 {[%clk 0:00:35.1]} 20. fxg3 {[%clk 0:00:23.4]} 20... Nxg3+ {[%clk
0:00:33]} 21. Kf2 {[%clk 0:00:23.1]} 21... f5 {[%clk 0:00:32.1]} 22. c5 {[%clk
0:00:16.8]} 22... Qe7 {[%clk 0:00:30.5]} 23. Rge1 {[%clk 0:00:13.7]} 23... Ne4+
{[%clk 0:00:29.7]} 24. Bxe4 {[%clk 0:00:12.7]} 24... fxe4 {[%clk 0:00:30.1]} 25.
Kg1 {[%clk 0:00:11.7]} 25... Ref8 {[%clk 0:00:29.9]} 26. d5 {[%clk 0:00:10]}
26... Rf3 {[%clk 0:00:24.6]} 27. c6 {[%clk 0:00:09.1]} 27... Rxe3 {[%clk
0:00:24.2]} 28. Qxe3 {[%clk 0:00:08.3]} 28... Rf8 {[%clk 0:00:24.5]} 29. Qxe4
{[%clk 0:00:07.4]} 29... Qf6 {[%clk 0:00:24.8]} 30. Qe8+ {[%clk 0:00:04.9]}
30... Qd8 {[%clk 0:00:22.5]} 31. Qxd8+ {[%clk 0:00:05.8]} 31... Rxd8 {[%clk
0:00:22.7]} 32. Re7 {[%clk 0:00:05.6]} 32... g5 {[%clk 0:00:23.2]} 33. Rae1
{[%clk 0:00:05.7]} 33... h5 {[%clk 0:00:24]} 34. Re8 {[%clk 0:00:06.2]} 34... g4
{[%clk 0:00:24.9]} 35. Rxd8# {[%clk 0:00:05.6]} 1-0

[Event "*** SCC Grand Prix: Titled Tuesday Blitz"]
[Site "Chess.com"]
[Date "2020.07.07"]
[Round "3"]
[White "TigranMukhutdinov"]
[Black "SHIVACalypso"]
[Result "0-1"]
[WhiteElo "2517"]
[BlackElo "2359"]
[TimeControl "180+1"]
[EndTime "10:28:51 PDT"]
[Termination "SHIVACalypso won by resignation"]

1. Nf3 {[%clk 0:03:00.9]} 1... Nf6 {[%clk 0:02:57.6]} 2. g3 {[%clk 0:03:01.2]}
2... e6 {[%clk 0:02:58]} 3. Bg2 {[%clk 0:03:00.8]} 3... d5 {[%clk 0:02:58.6]} 4.
O-O {[%clk 0:03:00.9]} 4... Be7 {[%clk 0:02:59.2]} 5. c4 {[%clk 0:03:01.3]} 5...
O-O {[%clk 0:02:59.1]} 6. d4 {[%clk 0:03:02]} 6... dxc4 {[%clk 0:02:59]} 7. Ne5
{[%clk 0:03:02.5]} 7... Nc6 {[%clk 0:02:58.5]} 8. Bxc6 {[%clk 0:03:03]} 8...
bxc6 {[%clk 0:02:59.4]} 9. Nxc6 {[%clk 0:03:03.5]} 9... Qe8 {[%clk 0:02:59.9]}
10. Nxe7+ {[%clk 0:03:04.4]} 10... Qxe7 {[%clk 0:03:00.8]} 11. Qc2 {[%clk
0:03:04.8]} 11... e5 {[%clk 0:02:59.1]} 12. Rd1 {[%clk 0:03:02.9]} 12... Re8
{[%clk 0:02:51.4]} 13. Nc3 {[%clk 0:03:01.5]} 13... exd4 {[%clk 0:02:50]} 14.
Rxd4 {[%clk 0:03:02.4]} 14... Be6 {[%clk 0:02:42.5]} 15. Bf4 {[%clk 0:02:55]}
15... Rad8 {[%clk 0:02:42.1]} 16. Rad1 {[%clk 0:02:53.5]} 16... c5 {[%clk
0:02:31]} 17. Bd6 {[%clk 0:02:40.7]} 17... cxd4 {[%clk 0:02:17.7]} 18. Bxe7
{[%clk 0:02:39.5]} 18... Rxe7 {[%clk 0:02:18.1]} 19. Nb5 {[%clk 0:02:32.5]}
19... Red7 {[%clk 0:02:11.9]} 20. Qa4 {[%clk 0:02:25]} 20... d3 {[%clk
0:01:54.3]} 21. exd3 {[%clk 0:02:22.8]} 21... cxd3 {[%clk 0:01:55.2]} 22. Rd2
{[%clk 0:02:07]} 22... Bf5 {[%clk 0:01:41.9]} 23. f3 {[%clk 0:02:05.4]} 23... h6
{[%clk 0:01:30.8]} 24. a3 {[%clk 0:01:46.6]} 24... Rb7 {[%clk 0:01:13.5]} 25.
Nxa7 {[%clk 0:01:39.2]} 25... Rdb8 {[%clk 0:00:47.4]} 26. Qf4 {[%clk 0:01:18.6]}
26... Rxb2 {[%clk 0:00:32.1]} 27. Rxb2 {[%clk 0:00:45.2]} 27... Rxb2 {[%clk
0:00:33]} 28. Qxf5 {[%clk 0:00:45.4]} 28... d2 {[%clk 0:00:32.3]} 29. Qd3 {[%clk
0:00:45.1]} 29... Ra2 {[%clk 0:00:28.6]} 30. Qb1 {[%clk 0:00:44.6]} 30... Nd5
{[%clk 0:00:20.4]} 31. Nb5 {[%clk 0:00:37.3]} 31... Rb2 {[%clk 0:00:13.7]} 32.
Qd3 {[%clk 0:00:33.1]} 32... Ra2 {[%clk 0:00:11]} 33. Qb1 {[%clk 0:00:26.9]}
33... Rb2 {[%clk 0:00:11.1]} 34. Qd1 {[%clk 0:00:26.9]} 34... Ne3 {[%clk
0:00:09.9]} 0-1

[Event "*** SCC Grand Prix: Titled Tuesday Blitz"]
[Site "Chess.com"]
[Date "2020.07.07"]
[Round "3"]
[White "Alexey_Spirin"]
[Black "Nemsko"]
[Result "0-1"]
[WhiteElo "2045"]
[BlackElo "2304"]
[TimeControl "180+1"]
[EndTime "10:28:52 PDT"]
[Termination "Nemsko won by checkmate"]

1. e4 {[%clk 0:03:00.8]} 1... e5 {[%clk 0:02:57.9]} 2. Nf3 {[%clk 0:03:00.3]}
2... Nc6 {[%clk 0:02:57.9]} 3. Bc4 {[%clk 0:03:00.6]} 3... Bc5 {[%clk
0:02:57.3]} 4. O-O {[%clk 0:03:00.6]} 4... Nf6 {[%clk 0:02:57.1]} 5. d3 {[%clk
0:03:01]} 5... O-O {[%clk 0:02:55.8]} 6. Bb3 {[%clk 0:02:59.9]} 6... a6 {[%clk
0:02:55.2]} 7. c3 {[%clk 0:02:58.1]} 7... Ba7 {[%clk 0:02:54.1]} 8. Nbd2 {[%clk
0:02:58.4]} 8... d6 {[%clk 0:02:51.7]} 9. Re1 {[%clk 0:02:57.4]} 9... Ne7 {[%clk
0:02:51.8]} 10. Nf1 {[%clk 0:02:54.8]} 10... Ng6 {[%clk 0:02:51.7]} 11. Ng3
{[%clk 0:02:54.3]} 11... Be6 {[%clk 0:02:48.4]} 12. Bc2 {[%clk 0:02:53]} 12...
h6 {[%clk 0:02:48.1]} 13. d4 {[%clk 0:02:50.9]} 13... c6 {[%clk 0:02:47.1]} 14.
h3 {[%clk 0:02:48.2]} 14... Qc7 {[%clk 0:02:46]} 15. a4 {[%clk 0:02:43.2]} 15...
Rad8 {[%clk 0:02:45.3]} 16. Qe2 {[%clk 0:02:38]} 16... Rfe8 {[%clk 0:02:43.5]}
17. a5 {[%clk 0:02:29.8]} 17... Kh8 {[%clk 0:02:28.3]} 18. Qd3 {[%clk
0:02:16.4]} 18... Bc8 {[%clk 0:02:05.4]} 19. Ra4 {[%clk 0:01:47.5]} 19... Bd7
{[%clk 0:01:43.2]} 20. Ra1 {[%clk 0:01:40.5]} 20... Bc8 {[%clk 0:01:42.4]} 21.
Ra4 {[%clk 0:01:39.6]} 21... d5 {[%clk 0:01:26.1]} 22. exd5 {[%clk 0:01:39]}
22... exd4 {[%clk 0:01:16.3]} 23. Rxe8+ {[%clk 0:01:19.4]} 23... Rxe8 {[%clk
0:01:17.2]} 24. dxc6 {[%clk 0:01:12.5]} 24... dxc3 {[%clk 0:01:01.9]} 25. Bb3
{[%clk 0:00:51.5]} 25... Qxg3 {[%clk 0:00:51]} 26. Bxf7 {[%clk 0:00:41.5]} 26...
Qxf2+ {[%clk 0:00:26.3]} 27. Kh1 {[%clk 0:00:41.1]} 27... Re1+ {[%clk
0:00:17.8]} 28. Kh2 {[%clk 0:00:34.6]} 28... Bb8+ {[%clk 0:00:14.4]} 29. Bf4
{[%clk 0:00:34.4]} 29... Bxf4+ {[%clk 0:00:14.4]} 30. Rxf4 {[%clk 0:00:34]}
30... Nxf4 {[%clk 0:00:12]} 31. Qd8+ {[%clk 0:00:32.8]} 31... Kh7 {[%clk
0:00:10.1]} 32. Qxc8 {[%clk 0:00:19.3]} 32... Qxg2# {[%clk 0:00:10.1]} 0-1

[Event "*** SCC Grand Prix: Titled Tuesday Blitz"]
[Site "Chess.com"]
[Date "2020.07.07"]
[Round "3"]
[White "vladislavkovalev"]
[Black "superchess02"]
[Result "1-0"]
[WhiteElo "2933"]
[BlackElo "2660"]
[TimeControl "180+1"]
[EndTime "10:28:53 PDT"]
[Termination "vladislavkovalev won by resignation"]

1. e4 {[%clk 0:03:00.9]} 1... e5 {[%clk 0:02:59.7]} 2. Nf3 {[%clk 0:03:00.8]}
2... Nc6 {[%clk 0:03:00.4]} 3. Bb5 {[%clk 0:03:00.6]} 3... a6 {[%clk 0:03:01]}
4. Ba4 {[%clk 0:03:00.5]} 4... Nf6 {[%clk 0:03:01.6]} 5. O-O {[%clk 0:02:59.4]}
5... Be7 {[%clk 0:03:02.2]} 6. d3 {[%clk 0:02:58.7]} 6... O-O {[%clk 0:03:00.3]}
7. Bxc6 {[%clk 0:02:58.5]} 7... bxc6 {[%clk 0:03:00.1]} 8. Nxe5 {[%clk 0:02:59]}
8... Re8 {[%clk 0:03:00.7]} 9. Nc3 {[%clk 0:02:52.4]} 9... Bb7 {[%clk
0:03:00.1]} 10. Nf3 {[%clk 0:02:42.4]} 10... d5 {[%clk 0:03:00.1]} 11. e5 {[%clk
0:02:42.2]} 11... Nd7 {[%clk 0:02:59.5]} 12. Re1 {[%clk 0:02:32.9]} 12... c5
{[%clk 0:03:00]} 13. e6 {[%clk 0:02:26.6]} 13... fxe6 {[%clk 0:02:57.1]} 14.
Rxe6 {[%clk 0:02:27.5]} 14... Bf6 {[%clk 0:02:56.4]} 15. Qe2 {[%clk 0:02:21.2]}
15... Kf7 {[%clk 0:02:13]} 16. Rxe8 {[%clk 0:02:14.5]} 16... Qxe8 {[%clk
0:02:13.9]} 17. Qxe8+ {[%clk 0:02:12.9]} 17... Rxe8 {[%clk 0:02:13.6]} 18. Bd2
{[%clk 0:02:13.5]} 18... d4 {[%clk 0:02:12.1]} 19. Na4 {[%clk 0:02:05.9]} 19...
Bxf3 {[%clk 0:02:11.7]} 20. gxf3 {[%clk 0:02:06.8]} 20... Re2 {[%clk 0:02:11.9]}
21. Rd1 {[%clk 0:02:03.5]} 21... Bh4 {[%clk 0:02:11.4]} 22. c3 {[%clk
0:01:29.5]} 22... Ne5 {[%clk 0:02:04.7]} 23. Bf4 {[%clk 0:01:26.8]} 23... Nxf3+
{[%clk 0:02:00.3]} 24. Kg2 {[%clk 0:01:27.3]} 24... Rxf2+ {[%clk 0:01:59.2]} 25.
Kh3 {[%clk 0:01:27.9]} 25... dxc3 {[%clk 0:01:31.2]} 26. Nxc3 {[%clk 0:01:24.5]}
26... g5 {[%clk 0:01:29.4]} 27. Bg3 {[%clk 0:01:18.6]} 27... Rxb2 {[%clk
0:01:29.1]} 28. Rf1 {[%clk 0:01:18.5]} 28... Kg6 {[%clk 0:01:19.8]} 29. Rxf3
{[%clk 0:01:09.6]} 29... Bxg3 {[%clk 0:01:14.6]} 30. hxg3 {[%clk 0:01:05.8]}
30... h5 {[%clk 0:01:13.6]} 31. g4 {[%clk 0:01:06]} 31... c4 {[%clk 0:00:46.7]}
32. dxc4 {[%clk 0:01:02.9]} 32... hxg4+ {[%clk 0:00:46.1]} 33. Kxg4 {[%clk
0:01:03.2]} 33... Rb4 {[%clk 0:00:46.7]} 34. Rf6+ {[%clk 0:00:56.1]} 34... Kxf6
{[%clk 0:00:46.5]} 35. Nd5+ {[%clk 0:00:56.7]} 35... Ke5 {[%clk 0:00:46.4]} 36.
Nxb4 {[%clk 0:00:56.8]} 36... Kd4 {[%clk 0:00:41.6]} 37. c5 {[%clk 0:00:51.8]}
37... Kxc5 {[%clk 0:00:38.9]} 38. Nxa6+ {[%clk 0:00:51.7]} 38... Kb6 {[%clk
0:00:24.3]} 39. Nb4 {[%clk 0:00:50.3]} 39... Kb5 {[%clk 0:00:23.6]} 40. Nc2
{[%clk 0:00:48.7]} 40... Ka5 {[%clk 0:00:20.8]} 41. Kxg5 {[%clk 0:00:47.1]}
41... c5 {[%clk 0:00:21.7]} 42. Kf4 {[%clk 0:00:47.6]} 42... Kb5 {[%clk
0:00:22.6]} 43. Ke3 {[%clk 0:00:46.7]} 43... Kc4 {[%clk 0:00:23.5]} 44. Kd2
{[%clk 0:00:47.3]} 1-0

[Event "*** SCC Grand Prix: Titled Tuesday Blitz"]
[Site "Chess.com"]
[Date "2020.07.07"]
[Round "3"]
[White "tan275"]
[Black "WilliamSchill"]
[Result "1-0"]
[WhiteElo "2278"]
[BlackElo "1971"]
[TimeControl "180+1"]
[EndTime "10:28:54 PDT"]
[Termination "tan275 won on time"]

1. d4 {[%clk 0:02:59.5]} 1... Nf6 {[%clk 0:02:59.1]} 2. c4 {[%clk 0:03:00.1]}
2... g6 {[%clk 0:02:59.4]} 3. g3 {[%clk 0:03:00.1]} 3... Bg7 {[%clk 0:02:59.5]}
4. Bg2 {[%clk 0:03:00.5]} 4... O-O {[%clk 0:02:59.7]} 5. Nc3 {[%clk 0:03:00.3]}
5... d6 {[%clk 0:02:59.8]} 6. Nf3 {[%clk 0:03:00.8]} 6... Nbd7 {[%clk
0:02:59.8]} 7. O-O {[%clk 0:03:01]} 7... c6 {[%clk 0:02:59.9]} 8. e4 {[%clk
0:02:59.7]} 8... e5 {[%clk 0:02:59.7]} 9. h3 {[%clk 0:02:57.5]} 9... Qb6 {[%clk
0:02:59.7]} 10. d5 {[%clk 0:02:56.7]} 10... cxd5 {[%clk 0:02:57]} 11. cxd5
{[%clk 0:02:56.1]} 11... Nc5 {[%clk 0:02:55.7]} 12. Qe2 {[%clk 0:02:55.5]} 12...
Bd7 {[%clk 0:02:43]} 13. Be3 {[%clk 0:02:54.1]} 13... Rfc8 {[%clk 0:02:31.4]}
14. Rfb1 {[%clk 0:02:53.2]} 14... Qa6 {[%clk 0:01:51.9]} 15. Qxa6 {[%clk
0:02:32.1]} 15... bxa6 {[%clk 0:01:51.1]} 16. Nd2 {[%clk 0:02:30]} 16... Rab8
{[%clk 0:01:24.3]} 17. Bf1 {[%clk 0:02:27.7]} 17... Bb5 {[%clk 0:00:54.4]} 18.
Nxb5 {[%clk 0:02:23.5]} 18... axb5 {[%clk 0:00:54.3]} 19. f3 {[%clk 0:02:22.6]}
19... Nh5 {[%clk 0:00:43.9]} 20. Kg2 {[%clk 0:02:03.9]} 20... f5 {[%clk
0:00:43.7]} 21. g4 {[%clk 0:01:55.5]} 21... fxg4 {[%clk 0:00:39.1]} 22. hxg4
{[%clk 0:01:51.6]} 22... Nf4+ {[%clk 0:00:39]} 23. Kg3 {[%clk 0:01:49.1]} 23...
Bh6 {[%clk 0:00:34.2]} 24. b4 {[%clk 0:01:23.5]} 24... Ne2+ {[%clk 0:00:20.1]}
25. Bxe2 {[%clk 0:01:22.3]} 25... Bxe3 {[%clk 0:00:19.9]} 26. bxc5 {[%clk
0:01:19.2]} 26... Bxd2 {[%clk 0:00:20]} 27. cxd6 {[%clk 0:01:12.4]} 27... Bf4+
{[%clk 0:00:17.6]} 28. Kf2 {[%clk 0:01:11.1]} 28... Rc2 {[%clk 0:00:16.8]} 29.
d7 {[%clk 0:01:05.8]} 29... Kf8 {[%clk 0:00:15.2]} 30. Rxb5 {[%clk 0:01:04.4]}
30... Rd8 {[%clk 0:00:04.3]} 31. Rb7 {[%clk 0:01:03.5]} 31... Ke7 {[%clk
0:00:04.2]} 32. Rxa7 {[%clk 0:01:02.7]} 32... Rc3 {[%clk 0:00:02.3]} 33. a4
{[%clk 0:00:58.3]} 33... Be3+ {[%clk 0:00:02.4]} 34. Kf1 {[%clk 0:00:53.4]}
34... Bxa7 {[%clk 0:00:03.3]} 35. a5 {[%clk 0:00:52.1]} 35... Rxd7 {[%clk
0:00:03.4]} 36. a6 {[%clk 0:00:53]} 36... Rdc7 {[%clk 0:00:03.4]} 37. Ke1 {[%clk
0:00:53.9]} 37... Kd6 {[%clk 0:00:03.4]} 38. Kf1 {[%clk 0:00:53.7]} 38... Rc1+
{[%clk 0:00:03.3]} 39. Rxc1 {[%clk 0:00:53]} 39... Rxc1+ {[%clk 0:00:03.3]} 40.
Kg2 {[%clk 0:00:53.9]} 40... g5 {[%clk 0:00:02.5]} 41. Bf1 {[%clk 0:00:54.8]}
41... Be3 {[%clk 0:00:01.4]} 42. Be2 {[%clk 0:00:55.7]} 1-0